bitfinex/quotes_ETHUSD_20240701
["timestamp","ask_amount","ask_price","bid_price","bid_amount"]
[1719794337776,18.99427413,3446.3,3446.2,33.04200923]
[1719794338976,18.99425248,3446.3,3446.2,33.04200923]
[1719794339184,17.736946,3446.3,3446.2,33.04200923]
[1719794339485,18.9942407,3446.3,3446.2,33.04200923]
[1719794340580,1.2572947,3446.3,3446.2,36.04654608]
[1719794340784,7.27,3446.9,3446.3,4.3217]
[1719794340987,7.27,3446.9,3446.4,0.06169114]
[1719794341298,7.27,3446.9,3446.5,4.0373]
[1719794341651,7.27,3446.9,3446.6,0.061553]
[1719794342482,3.0,3446.8,3446.7,4.0373]
[1719794342669,7.27,3446.9,3446.7,4.0373]
[1719794342870,7.27,3446.9,3446.8,0.4098853]
[1719794343072,0.828,3447.3,3446.8,0.4098853]
[1719794343275,0.828,3447.3,3446.8,0.47127181]
[1719794344389,0.828,3447.2,3446.8,0.47127181]
[1719794344885,7.27,3447.5,3446.8,0.47127181]
[1719794345099,0.828,3447.4,3446.9,0.45085718]
[1719794345301,7.27,3447.5,3446.9,0.45085718]
[1719794345489,3.0,3447.4,3447.0,4.0158]
[1719794345659,3.828,3447.4,3447.0,4.0158]
[1719794346355,3.0,3447.4,3447.0,4.0158]
[1719794346564,0.828,3447.6,3447.1,0.54883361]
[1719794347074,3.0,3447.7,3447.1,0.54883361]
[1719794347417,0.828,3447.6,3447.1,0.48765425]
[1719794348012,0.828,3447.6,3447.2,0.06108981]
[1719794348469,0.828,3447.6,3447.1,0.48765425]
[1719794348675,0.828,3447.6,3447.2,0.45034542]
[1719794348886,0.828,3447.6,3447.2,0.51143523]
[1719794349109,0.828,3447.6,3447.2,0.45034542]
[1719794351813,0.828,3447.4,3447.2,0.45034542]
[1719794351976,0.828,3447.4,3447.0,4.0158]
[1719794352310,0.828,3447.4,3447.1,0.06109991]
[1719794354915,0.828,3447.2,3447.1,0.06109991]
[1719794355124,22.238441,3447.2,3447.1,0.06109991]
[1719794355320,25.4288521,3447.2,3446.7,4.1992]
[1719794355500,0.828,3446.8,3446.3,4.1992]
[1719794357686,0.828,3446.9,3446.3,4.1992]
[1719794360136,10.27,3447.2,3446.3,4.25722727]
[1719794360137,0.828,3447.1,3446.3,4.25722727]
[1719794360428,0.828,3447.1,3446.4,3.00453685]
[1719794363209,0.828,3447.1,3446.3,4.1992]
[1719794363611,0.828,3447.1,3446.4,0.06157894]
[1719794366096,0.828,3446.9,3446.4,0.06157894]
[1719794368798,0.828,3446.7,3446.4,0.06157894]
[1719794370500,0.828,3447.0,3446.4,0.06157894]
[1719794370699,0.828,3447.0,3446.5,3.00453685]
[1719794370918,0.828,3446.8,3446.5,3.06609297]
[1719794371911,0.828,3446.6,3446.5,3.06609297]
[1719794372115,0.828,3446.6,3446.5,0.06155612]
[1719794372441,0.828,3446.6,3446.3,4.1992]
[1719794372745,0.828,3446.6,3446.5,0.05954397]
[1719794372915,0.828,3446.6,3446.4,0.05961304]
[1719794373116,0.828,3446.6,3446.5,0.05954397]
[1719794374801,0.828,3446.6,3446.2,32.98018956]
[1719794374802,3.9696,3446.5,3446.2,32.98018956]
[1719794375136,0.828,3446.3,3446.2,32.98018956]
[1719794375343,21.283425,3446.3,3446.2,32.98018956]
[1719794375506,24.283425,3446.3,3446.2,32.98018956]
[1719794375706,24.283425,3446.3,3446.2,33.03994074]
[1719794377505,20.073059,3446.3,3446.2,33.03994074]
[1719794377718,14.93783,3446.3,3446.2,33.03994074]
[1719794377920,14.361639,3446.3,3446.2,33.03994074]
[1719794378123,10.362657,3446.3,3446.2,33.03994074]
[1719794381252,3.0,3446.3,3446.2,33.03994074]
[1719794381427,0.828,3446.5,3446.2,36.04447759]
[1719794381633,0.828,3446.5,3446.2,33.03994074]
[1719794386262,0.828,3446.3,3446.2,33.03994074]
[1719794390037,7.0584,3446.7,3446.2,33.03994074]
[1719794390237,0.828,3446.3,3446.2,33.03994074]
[1719794396039,3.0,3446.7,3446.2,36.04447759]
[1719794396242,3.0,3446.7,3446.3,4.2644]
[1719794396479,3.828,3446.7,3446.3,4.2644]
[1719794396681,0.828,3446.5,3446.4,0.05965264]
[1719794396851,0.828,3446.5,3446.4,3.06418949]
[1719794399447,0.828,3446.5,3446.4,0.05965264]
[1719794399850,0.828,3446.5,3446.2,32.98018956]
[1719794400065,0.828,3446.5,3446.3,0.05971311]
[1719794400263,0.828,3446.5,3446.2,32.98018956]
[1719794400475,0.828,3446.5,3446.3,0.05776237]
[1719794400679,0.828,3446.5,3446.2,32.98018956]
[1719794400867,0.828,3446.5,3446.4,0.0576933]
[1719794401071,0.828,3446.5,3446.2,32.98018956]
[1719794401253,0.828,3446.5,3446.4,0.0576933]
[1719794401578,0.828,3446.5,3446.2,32.98018956]
[1719794401772,0.828,3446.5,3446.4,0.0576933]
[1719794401974,0.828,3446.5,3446.3,0.05776237]
[1719794402179,0.828,3446.5,3446.4,0.0576933]
[1719794402549,0.828,3446.5,3446.2,32.98018956]
[1719794402747,0.828,3446.5,3446.4,0.0576933]
[1719794402999,0.828,3446.7,3446.3,3.06229922]
[1719794403218,0.828,3446.7,3446.4,0.0576933]
[1719794403748,4.25708041,3447.0,3446.5,4.1446]
[1719794404058,0.828,3446.9,3446.6,0.05755517]
[1719794404886,3.0,3447.0,3446.6,0.05755517]
[1719794405177,3.0,3447.2,3446.6,0.05755517]
[1719794405342,0.828,3446.9,3446.6,0.05755517]
[1719794407699,0.828,3446.7,3446.6,0.05755517]
[1719794408186,0.828,3446.7,3446.3,7.21043685]
[1719794408409,0.828,3446.7,3446.6,0.05755517]
[1719794408695,0.828,3446.7,3446.3,4.2059]
[1719794408912,0.828,3446.7,3446.6,0.05755517]
[1719794409074,0.828,3446.7,3446.3,4.2059]
[1719794409379,0.828,3446.7,3446.4,0.0576814]
[1719794415115,0.828,3446.8,3446.4,0.0576814]
[1719794415282,0.828,3446.8,3446.4,3.06221825]
[1719794416603,3.0,3447.0,3446.4,3.06221825]
[1719794417381,0.828,3446.8,3446.4,3.06221825]
[1719794422015,3.0,3447.0,3446.4,3.06221825]
[1719794422214,0.828,3446.9,3446.4,3.06221825]
[1719794422392,3.0,3447.2,3446.5,0.05802666]
[1719794422591,1.25695281,3447.3,3446.6,3.9474]
[1719794422801,8.098,3447.4,3446.6,3.9474]
[1719794422802,9.35495281,3447.4,3446.7,0.05802053]
[1719794423114,9.35495281,3447.4,3446.8,0.05738518]
[1719794424018,3.0,3447.3,3446.8,0.05738518]
[1719794424911,4.25669432,3447.3,3446.8,0.05738518]
[1719794425075,3.0,3447.3,3446.8,0.05738518]
[1719794425281,4.25669277,3447.3,3446.8,0.05738518]
[1719794426617,0.828,3447.2,3446.8,0.05738518]
[1719794427014,4.25669277,3447.3,3446.8,0.5216849]
[1719794427219,4.25669277,3447.3,3446.8,33.50187446]
[1719794427416,5.08469277,3447.3,3446.9,3.9723]
[1719794427828,0.828,3447.3,3447.0,0.05722201]
[1719794428688,3.0,3447.5,3447.0,3.06175886]
[1719794428890,0.828,3447.4,3447.0,3.06175886]
[1719794429802,1.2564222,3447.6,3447.2,4.1271]
[1719794430136,1.2564222,3447.6,3447.3,0.78167666]
[1719794430437,1.2564222,3447.6,3447.4,4.3329]
[1719794430735,1.2564222,3447.6,3447.5,0.05684157]
[1719794430944,7.27,3447.7,3447.5,0.05684157]
[1719794431302,3.0,3447.6,3447.5,0.05684157]
[1719794431505,3.0,3447.6,3447.5,0.65688549]
[1719794433600,0.828,3448.0,3447.5,33.63707505]
[1719794433923,0.828,3448.0,3447.5,33.03703113]
[1719794442470,0.828,3447.8,3447.5,33.03703113]
[1719794445749,3.0,3448.1,3447.5,33.03703113]
[1719794446379,0.828,3448.0,3447.5,33.03703113]
[1719794446591,3.0,3448.1,3447.6,2.87506975]
[1719794446749,19.858951,3448.5,3447.9,0.828]
[1719794447095,19.858951,3448.5,3448.2,4.2536]
[1719794447385,0.118951,3448.5,3448.3,0.05624108]
[1719794447758,0.118951,3448.5,3448.2,4.2536]
[1719794448151,0.118951,3448.5,3448.3,0.056219]
[1719794448553,0.118951,3448.5,3448.2,4.2536]
[1719794448859,0.118951,3448.5,3448.3,0.05619014]
[1719794449068,0.118951,3448.5,3448.2,4.2536]
[1719794449468,0.118951,3448.5,3448.3,0.05619014]
[1719794449683,0.118951,3448.5,3448.2,4.2536]
[1719794449910,0.118951,3448.5,3448.3,0.05619014]
[1719794450074,0.118951,3448.5,3448.2,4.2536]
[1719794450275,0.118951,3448.5,3448.3,0.05618547]
[1719794450460,0.118951,3448.5,3448.2,4.67896]
[1719794450661,0.118951,3448.5,3448.3,0.05618547]
[1719794450993,0.118951,3448.5,3448.2,4.67896]
[1719794451198,0.118951,3448.5,3448.2,4.2536]
[1719794451495,0.118951,3448.5,3448.3,0.05618547]
[1719794451657,0.118951,3448.5,3448.2,4.2536]
[1719794451861,0.118951,3448.5,3448.3,0.05618547]
[1719794452200,0.118951,3448.5,3448.2,4.2536]
[1719794454974,0.118951,3448.5,3448.3,0.05618547]
[1719794455185,0.118951,3448.5,3448.3,0.05799397]
[1719794455694,0.118951,3448.5,3448.2,4.76176]
[1719794455903,0.118951,3448.5,3448.3,0.05618547]
[1719794456095,0.118951,3448.5,3448.2,4.76176]
[1719794456291,0.118951,3448.5,3448.3,33.45636556]
[1719794456465,0.118951,3448.5,3448.3,33.51255103]
[1719794461201,0.118951,3448.5,3448.4,4.1055]
[1719794461582,0.118951,3448.5,3448.4,4.16160714]
[1719794466273,0.118951,3448.5,3448.4,0.05610714]
[1719794466475,0.118951,3448.5,3448.4,3.00453685]
[1719794466717,0.118951,3448.5,3448.4,3.06063253]
[1719794467424,0.118951,3448.5,3448.4,7.02243253]
[1719794468477,0.118951,3448.5,3448.4,7.85043253]
[1719794471312,0.118951,3448.5,3448.4,7.02243253]
[1719794471478,0.118951,3448.5,3448.4,7.85043253]
[1719794473832,0.118951,3448.5,3448.4,7.02243253]
[1719794474144,0.118951,3448.5,3448.4,7.85043253]
[1719794476698,0.118951,3448.5,3448.4,7.02243253]
[1719794476905,0.118951,3448.5,3448.4,3.06063253]
[1719794485343,0.118951,3448.5,3448.4,0.05609568]
[1719794485542,0.118951,3448.5,3448.3,32.98018956]
[1719794485766,0.118951,3448.5,3448.4,0.05606259]
[1719794486152,0.118951,3448.5,3448.3,32.98018956]
[1719794486355,0.118951,3448.5,3448.4,0.05606259]
[1719794486553,0.118951,3448.5,3448.3,32.98018956]
[1719794486755,0.118951,3448.5,3448.4,0.05606259]
[1719794487137,0.118951,3448.5,3448.3,32.98018956]
[1719794487355,0.118951,3448.5,3448.4,0.05606259]
[1719794487735,0.118951,3448.5,3448.3,32.98018956]
[1719794487936,0.118951,3448.5,3448.4,0.05606259]
[1719794488151,0.118951,3448.5,3448.3,32.98018956]
[1719794488359,0.118951,3448.5,3448.4,0.05606259]
[1719794488751,0.118951,3448.5,3448.3,32.98018956]
[1719794488957,0.118951,3448.5,3448.4,0.05606259]
[1719794489167,0.118951,3448.5,3448.4,3.11859171]
[1719794489369,0.118951,3448.5,3448.4,3.83253685]
[1719794489593,0.118951,3448.5,3448.4,3.88859944]
[1719794490867,0.118951,3448.5,3448.4,3.94658569]
[1719794494597,0.118951,3448.5,3448.4,8.40158569]
[1719794496299,0.118951,3448.5,3448.4,8.34359944]
[1719794503715,0.118951,3448.5,3448.4,7.51559944]
[1719794503888,0.118951,3448.5,3448.4,8.34359944]
[1719794506616,0.118951,3448.5,3448.4,3.61059944]
[1719794506818,0.118951,3448.5,3448.4,4.43859944]
[1719794509618,0.118951,3448.5,3448.4,3.06059944]
[1719794511819,0.118951,3448.5,3448.4,0.05606259]
[1719794512215,0.118951,3448.5,3448.3,33.80818956]
[1719794512421,0.118951,3448.5,3448.4,0.05603205]
[1719794512810,0.118951,3448.5,3448.3,33.80818956]
[1719794513134,0.118951,3448.5,3448.4,0.05603205]
[1719794513437,0.118951,3448.5,3448.4,3.00453685]
[1719794513641,0.118951,3448.5,3448.4,0.05603205]
[1719794514112,0.118951,3448.5,3448.3,32.98018956]
[1719794514316,0.118951,3448.5,3448.4,0.05603205]
[1719794514625,0.118951,3448.5,3448.3,32.98018956]
[1719794514803,0.118951,3448.5,3448.4,0.05603205]
[1719794515199,4.406251,3448.5,3448.3,32.98018956]
[1719794515436,4.406251,3448.5,3448.4,0.05603205]
[1719794515838,4.406251,3448.5,3448.3,32.98018956]
[1719794516002,4.406251,3448.5,3448.4,0.05606385]
[1719794516200,4.406251,3448.5,3448.3,32.98018956]
[1719794516533,4.406251,3448.5,3448.4,0.05606385]
[1719794516534,0.118951,3448.5,3448.4,0.05606385]
[1719794516752,0.118951,3448.5,3448.4,0.828]
[1719794516956,0.118951,3448.5,3448.4,0.88406682]
[1719794517332,0.118951,3448.5,3448.4,5.75205473]
[1719794517518,0.118951,3448.5,3448.4,5.69406682]
[1719794517721,0.118951,3448.5,3448.4,8.69860367]
[1719794517921,0.118951,3448.5,3448.4,4.43860367]
[1719794521229,0.118951,3448.5,3448.4,3.61060367]
[1719794522239,0.11808024,3448.5,3448.4,3.06060367]
[1719794522734,0.11808024,3448.5,3448.4,3.11859036]
[1719794524845,0.11808024,3448.5,3448.4,3.94659036]
[1719794527440,0.11808024,3448.5,3448.4,3.11859036]
[1719794528761,0.11808024,3448.5,3448.4,3.11858914]
[1719794528958,0.11808024,3448.5,3448.4,3.23658914]
[1719794529422,0.08808024,3448.5,3448.4,3.23658914]
[1719794530457,0.08808024,3448.5,3448.4,4.06458914]
[1719794531872,0.08808024,3448.5,3448.4,3.23658914]
[1719794533562,0.08808024,3448.5,3448.4,3.17860367]
[1719794533951,0.08808024,3448.5,3448.4,0.17406682]
[1719794537975,0.08808024,3448.5,3448.4,33.15425638]
[1719794542503,0.91608024,3448.5,3448.4,33.15425638]
[1719794542884,5.22838024,3448.5,3448.4,33.15425638]
[1719794543805,8.22838024,3448.5,3448.4,33.15425638]
[1719794544103,9.35121826,3448.5,3448.4,33.15425638]
[1719794544299,17.49646826,3448.5,3448.4,33.15425638]
[1719794544603,9.35121826,3448.5,3448.4,33.09818956]
[1719794544903,9.35121826,3448.5,3448.4,33.15421199]
[1719794546293,8.22838024,3448.5,3448.4,33.15421199]
[1719794547583,12.40370924,3448.5,3448.4,33.15421199]
[1719794547778,12.40370924,3448.5,3448.4,33.09818956]
[1719794548199,12.40370924,3448.5,3448.4,33.15421199]
[1719794552827,13.65978638,3448.5,3448.4,33.15421199]
[1719794552977,15.02576502,3448.5,3448.4,33.15421199]
[1719794553984,15.02596353,3448.5,3448.4,33.15421199]
[1719794556943,13.76968788,3448.5,3448.4,33.15421199]
[1719794560348,13.76968788,3448.5,3448.4,33.09818956]
[1719794560649,13.76968788,3448.5,3448.4,33.15428158]
[1719794565059,12.94168788,3448.5,3448.4,33.15428158]
[1719794565355,13.76968788,3448.5,3448.4,33.15428158]
[1719794570249,37.47249588,3448.5,3448.4,33.15428158]
[1719794570549,29.45535388,3448.5,3448.4,33.15428158]
[1719794571055,29.22294288,3448.5,3448.4,33.15428158]
[1719794572488,26.96753188,3448.5,3448.4,33.15428158]
[1719794579915,26.96753188,3448.5,3448.4,0.17409202]
[1719794580077,26.96753188,3448.5,3448.4,0.118]
[1719794580675,18.201173,3448.5,3448.4,0.118]
[1719794580914,0.75,3448.8,3448.5,6.01265768]
[1719794581092,0.828,3448.6,3448.5,6.01265768]
[1719794581413,40.72633299,3448.6,3448.4,0.17411323]
[1719794581582,40.72633299,3448.6,3447.2,4.0886]
[1719794581583,35.31544385,3448.5,3447.2,4.0886]
[1719794581778,0.828,3447.3,3447.2,4.0886]
[1719794581983,0.828,3447.3,3446.1,4.0886]
[1719794582219,12.47,3448.2,3447.2,0.05507138]
[1719794582220,7.27,3447.4,3447.2,0.05507138]
[1719794582403,12.47,3448.2,3446.9,4.0886]
[1719794582404,10.539756,3447.3,3446.9,4.0886]
[1719794582607,7.27,3447.8,3447.3,0.0550206]
[1719794582915,7.27,3447.8,3446.9,4.0886]
[1719794582916,0.828,3447.4,3446.9,4.0886]
[1719794583215,0.828,3447.0,3446.9,4.0886]
[1719794584446,3.0,3447.5,3446.9,4.49746]
[1719794584634,7.27,3447.8,3446.9,4.49746]
[1719794584635,0.828,3447.0,3446.9,4.49746]
[1719794584968,0.828,3447.0,3446.9,4.0886]
[1719794585261,0.828,3447.0,3446.9,4.14389762]
[1719794591217,0.828,3447.0,3446.9,4.11589762]
[1719794592172,4.25681302,3447.7,3446.9,4.11589762]
[1719794592459,0.828,3447.0,3446.9,4.0606]
[1719794592921,0.828,3447.0,3446.9,4.11593415]
[1719794593741,4.25681302,3447.7,3446.9,4.52752757]
[1719794593742,0.828,3447.2,3446.9,4.52752757]
[1719794593917,0.828,3447.2,3446.9,4.11593415]
[1719794595223,0.972,3447.2,3446.9,4.11593415]
[1719794596225,0.828,3447.0,3446.9,0.05533415]
[1719794596411,0.144,3447.2,3446.9,0.05533415]
[1719794596613,0.828,3447.0,3446.6,4.3228]
[1719794596809,0.828,3446.7,3446.6,4.3228]
[1719794598339,0.144,3447.2,3446.6,4.75508]
[1719794598544,0.828,3447.0,3446.8,3.9886]
[1719794599825,0.144,3447.2,3446.8,3.9886]
[1719794600717,0.828,3447.1,3446.8,3.9886]
[1719794600920,0.828,3447.1,3447.0,3.9004]
[1719794603538,0.828,3447.1,3447.0,3.95566306]
[1719794615342,0.828,3447.1,3447.0,0.05526306]
[1719794615559,0.828,3447.1,3446.8,4.119]
[1719794615757,0.828,3446.9,3446.8,4.119]
[1719794616335,0.828,3446.9,3446.8,4.5309]
[1719794617063,0.828,3446.9,3446.8,4.119]
[1719794617266,0.144,3447.2,3446.8,4.119]
[1719794617469,0.828,3446.9,3446.8,4.119]
[1719794617675,0.144,3447.2,3446.8,4.119]
[1719794617840,0.144,3447.2,3446.9,0.05801555]
[1719794618039,0.972,3447.2,3447.0,0.41770156]
[1719794618435,0.144,3447.2,3447.1,4.2735]
[1719794618676,0.972,3447.2,3447.1,4.2735]
[1719794618970,0.144,3447.2,3447.1,4.32868172]
[1719794621568,0.144,3447.2,3447.1,62.32868172]
[1719794621761,0.972,3447.2,3447.1,65.33321857]
[1719794622150,0.144,3447.2,3447.1,65.33321857]
[1719794624959,0.972,3447.2,3447.1,65.33321857]
[1719794627779,0.972,3447.2,3447.1,58.05518172]
[1719794640180,6.321,3447.2,3447.1,58.05518172]
[1719794640377,3.321,3447.2,3447.1,58.05518172]
[1719794640582,6.321,3447.2,3447.1,58.05518172]
[1719794641774,3.972,3447.2,3447.1,58.05518172]
[1719794642181,3.144,3447.2,3447.1,58.05518172]
[1719794642381,3.972,3447.2,3447.1,58.05518172]
[1719794644517,3.972,3447.2,3447.1,63.26878172]
[1719794644518,3.144,3447.2,3447.1,63.26878172]
[1719794644795,3.144,3447.2,3447.1,66.27331857]
[1719794645376,0.144,3447.2,3447.1,66.27331857]
[1719794645597,3.144,3447.2,3447.1,66.27331857]
[1719794645800,0.144,3447.2,3447.1,66.27331857]
[1719794652117,3.0,3447.6,3447.1,66.27331857]
[1719794652321,3.0,3447.6,3447.2,3.00453685]
[1719794652511,0.828,3447.8,3447.2,3.00453685]
[1719794652683,0.828,3447.8,3447.3,0.0550258]
[1719794653718,0.828,3447.6,3447.3,0.0550258]
[1719794657614,0.828,3447.4,3447.3,0.0550258]
[1719794657987,5.78838,3447.9,3447.1,63.2136]
[1719794658187,3.0,3447.9,3447.2,0.05507063]
[1719794658384,0.828,3447.3,3447.2,0.05507063]
[1719794658588,0.828,3447.3,3447.1,63.2136]
[1719794658821,0.828,3447.3,3447.2,0.05507063]
[1719794659116,0.828,3447.3,3447.1,63.2136]
[1719794659335,0.828,3447.3,3447.2,0.05507063]
[1719794660127,0.828,3447.3,3447.1,66.21813685]
[1719794660302,0.828,3447.3,3447.2,0.05507063]
[1719794660701,0.828,3447.3,3447.1,66.21813685]
[1719794661126,0.828,3447.3,3447.2,0.05507063]
[1719794661487,0.828,3447.3,3447.1,66.21813685]
[1719794661690,0.828,3447.3,3447.2,0.05507063]
[1719794662129,0.828,3447.3,3447.2,1.32228157]
[1719794662422,0.828,3447.3,3447.2,1.3773522]
[1719794665034,0.828,3447.5,3447.2,1.3773522]
[1719794669512,0.828,3447.3,3447.2,0.05507063]
[1719794669723,0.828,3447.3,3447.1,66.21813685]
[1719794670123,0.828,3447.3,3447.2,0.05507063]
[1719794670549,0.828,3447.3,3447.1,66.21813685]
[1719794670826,0.828,3447.3,3447.2,0.05507063]
[1719794671026,0.828,3447.3,3447.1,66.21813685]
[1719794671223,0.828,3447.3,3447.2,0.05507063]
[1719794671446,0.828,3447.3,3447.1,66.21813685]
[1719794671633,0.828,3447.3,3447.2,0.05507063]
[1719794671846,0.828,3447.3,3447.1,66.21813685]
[1719794672049,0.828,3447.3,3447.2,0.05507063]
[1719794672357,0.828,3447.3,3447.1,66.21813685]
[1719794672749,0.828,3447.3,3447.2,0.05507063]
[1719794672951,0.828,3447.3,3447.1,8.21813685]
[1719794673148,0.828,3447.3,3447.2,0.05507486]
[1719794673360,0.828,3447.3,3447.1,5.2136]
[1719794673526,0.828,3447.3,3447.2,0.05507486]
[1719794673727,0.828,3447.3,3446.9,5.425]
[1719794674159,0.828,3447.3,3447.0,0.05521294]
[1719794674560,0.828,3447.3,3447.0,0.60323423]
[1719794676144,0.828,3447.1,3447.0,0.05521294]
[1719794676346,0.828,3447.1,3446.7,5.3654]
[1719794676759,0.828,3447.1,3446.8,0.05535104]
[1719794678153,3.0,3447.4,3446.8,0.05535104]
[1719794678370,3.0,3447.4,3446.7,5.3654]
[1719794678371,0.828,3446.9,3446.7,5.3654]
[1719794678830,0.828,3446.9,3445.2,5.3654]
[1719794679031,0.828,3446.5,3445.6,5.3654]
[1719794679270,0.828,3446.5,3445.7,5.42152235]
[1719794680166,0.828,3446.5,3445.9,5.3732]
[1719794680467,0.828,3446.5,3446.0,0.0559155]
[1719794682259,7.27,3446.7,3446.0,0.0559155]
[1719794682447,0.828,3446.6,3446.1,0.59791155]
[1719794682653,0.828,3446.6,3446.2,0.0557922]
[1719794683889,6.1557,3446.6,3446.2,0.0557922]
[1719794684104,0.828,3446.6,3446.2,0.0557922]
[1719794692010,0.828,3446.6,3446.3,0.05576393]
[1719794692293,0.828,3446.6,3445.9,5.3732]
[1719794692509,0.828,3446.6,3446.4,0.05569485]
[1719794692684,0.828,3446.6,3445.9,5.3732]
[1719794692861,3.0,3446.7,3446.5,0.05562579]
[1719794693061,3.0,3446.7,3445.5,0.828]
[1719794693062,0.828,3446.6,3445.6,4.5837]
[1719794693261,0.828,3446.4,3445.6,4.5837]
[1719794693491,0.828,3446.4,3445.7,0.59734844]
[1719794694971,0.828,3446.0,3445.7,0.59734844]
[1719794695174,0.828,3446.0,3445.7,0.05617844]
[1719794695878,0.828,3446.0,3445.6,4.5837]
[1719794696710,0.828,3446.0,3445.1,4.8612]
[1719794696886,0.828,3446.0,3445.2,0.55]
[1719794697064,0.828,3446.0,3445.3,0.62392]
[1719794697607,0.828,3446.0,3445.4,0.05640742]
[1719794700005,0.828,3446.0,3445.3,0.62392]
[1719794700233,0.828,3446.0,3445.4,0.05640742]
[1719794700521,0.828,3445.8,3445.4,0.05640742]
[1719794700812,0.828,3445.6,3445.4,0.05640742]
[1719794701197,0.828,3445.6,3445.1,4.8612]
[1719794701375,0.828,3445.8,3445.2,0.05654565]
[1719794701579,0.828,3445.8,3445.1,4.8612]
[1719794702312,4.7223,3445.9,3445.1,4.8612]
[1719794702641,3.0,3446.1,3445.1,4.8612]
[1719794702642,3.0,3446.1,3445.2,0.62696105]
[1719794702782,3.0,3446.1,3445.5,0.828]
[1719794702977,3.0,3446.1,3445.7,4.5436]
[1719794703400,3.0,3446.1,3445.8,0.05615226]
[1719794703612,3.0,3446.1,3445.7,4.5436]
[1719794703907,3.0,3446.4,3445.8,0.05614078]
[1719794704115,3.0,3446.4,3445.8,0.59891486]
[1719794704277,3.0,3446.4,3445.8,0.54277408]
[1719794704916,0.828,3446.3,3445.8,0.54277408]
[1719794705112,3.0,3446.4,3445.9,0.05803051]
[1719794705282,3.0,3446.4,3445.9,0.57247097]
[1719794705911,3.0,3446.4,3446.0,0.0560026]
[1719794706110,3.0,3446.4,3446.1,4.8283]
[1719794706314,3.0,3446.5,3446.2,0.05802724]
[1719794706529,3.0,3446.5,3446.2,0.11389168]
[1719794706810,3.0,3446.5,3446.3,0.63504558]
[1719794707009,3.0,3446.5,3446.4,5.0014]
[1719794707221,3.0,3446.5,3446.4,5.05710972]
[1719794708416,7.27,3446.6,3446.4,5.05710972]
[1719794708923,7.27,3446.6,3446.4,5.88510972]
[1719794709136,7.27,3446.6,3446.5,0.64621289]
[1719794709347,19.74,3447.2,3446.5,0.64621289]
[1719794709483,19.74,3447.2,3446.5,0.70185354]
[1719794710717,3.0,3447.1,3446.6,4.7301]
[1719794710919,3.0,3447.1,3446.7,0.54319535]
[1719794711098,3.0,3447.1,3446.7,0.59869788]
[1719794713905,0.828,3447.4,3446.7,0.59869788]
[1719794714086,0.828,3447.4,3446.7,0.54319535]
[1719794715319,0.828,3447.4,3446.8,0.52732954]
[1719794715523,0.828,3447.4,3446.6,4.7301]
[1719794717913,0.828,3447.1,3446.6,4.7301]
[1719794721723,0.828,3447.1,3445.7,4.9468]
[1719794721906,7.27,3447.0,3446.2,4.9468]
[1719794722108,7.27,3447.0,3446.3,0.57748]
[1719794722310,7.27,3447.0,3446.3,0.63321716]
[1719794723747,7.27,3447.0,3446.5,0.828]
[1719794723953,3.0,3447.3,3446.6,5.00482009]
[1719794724255,3.0,3447.3,3446.6,5.06035004]
[1719794727054,7.27,3447.4,3447.0,0.828]
[1719794727269,7.27,3447.4,3447.1,4.9877]
[1719794727432,7.27,3447.4,3447.2,0.58157]
[1719794727633,13.298,3447.9,3447.2,0.58157]
[1719794727954,13.298,3447.9,3447.3,0.05503642]
[1719794728466,3.0,3447.8,3447.3,0.05503642]
[1719794730223,12.47,3447.9,3447.3,0.67547397]
[1719794731543,8.098,3448.0,3447.3,0.67547397]
[1719794731926,8.098,3448.0,3447.3,0.70339585]
[1719794733926,7.27,3448.0,3447.4,4.9429]
[1719794734135,8.098,3448.0,3447.5,0.14084898]
[1719794737436,0.828,3448.0,3447.5,0.14084898]
[1719794741535,0.828,3447.8,3447.5,0.14084898]
[1719794742765,0.828,3448.0,3447.5,0.14084898]
[1719794744462,0.828,3448.0,3447.6,4.9863]
[1719794744779,0.828,3448.0,3447.7,0.08269952]
[1719794744964,7.27,3448.4,3447.8,0.05800502]
[1719794745165,0.828,3448.7,3447.9,5.5363]
[1719794745365,0.828,3448.7,3448.0,0.05799564]
[1719794745764,0.828,3448.7,3448.1,0.08241853]
[1719794746336,3.828,3448.7,3448.1,0.08241853]
[1719794746541,0.828,3448.5,3448.1,0.08241853]
[1719794751445,0.828,3448.5,3447.9,5.5363]
[1719794751646,0.828,3448.3,3448.2,0.08234872]
[1719794751845,0.828,3448.3,3447.9,5.5363]
[1719794752042,0.828,3448.3,3447.9,4.9863]
[1719794752377,0.828,3448.3,3448.0,0.08246118]
[1719794753078,8.0025,3448.7,3448.0,0.08246118]
[1719794753079,0.828,3448.1,3448.0,0.08246118]
[1719794753264,0.828,3448.1,3447.5,4.6406]
[1719794753453,0.828,3447.9,3447.6,0.55]
[1719794753652,0.828,3447.9,3447.6,0.63271632]
[1719794755847,0.828,3447.9,3447.6,0.55]
[1719794756050,0.828,3447.9,3447.6,1.06906]
[1719794756277,0.828,3448.1,3447.6,1.06906]
[1719794756480,0.828,3448.1,3447.7,0.08264649]
[1719794757885,0.828,3448.1,3447.6,0.51906]
[1719794759056,0.828,3448.1,3447.5,4.6406]
[1719794759252,0.828,3447.9,3446.6,4.7171]
[1719794759504,0.828,3447.9,3446.9,4.7171]
[1719794759871,0.828,3447.9,3447.0,0.63313539]
[1719794765718,4.8509,3447.8,3447.0,0.63313539]
[1719794765960,4.8509,3447.8,3447.1,0.61782354]